fUSD/lending_fUSD_20250415
["ID","MTS","AMOUNT","RATE_DAILY","PERIOD"]
[358072114,1744689047092,-1648.49,0.00017897,2]
[358072115,1744689047102,-500.0,0.00017897,2]
[358072116,1744689047114,-1648.49,0.00017897,2]
[358072117,1744689047124,-500.0,0.00017897,2]
[358072118,1744689047134,-1648.49,0.00017897,2]
[358072119,1744689047145,-500.0,0.00017897,2]
[358072120,1744689047154,-1648.49,0.00017897,2]
[358072121,1744689047165,-1648.49,0.00017897,2]
[358072122,1744689047175,-1648.49,0.00017897,2]
[358072123,1744689047187,-1648.49,0.00017897,2]
[358072124,1744689047197,-1648.49,0.00017897,2]
[358072125,1744689047208,-1648.49,0.00017897,2]
[358072126,1744689047219,-1648.49,0.00017897,2]
[358072127,1744689047231,-1648.49,0.00017897,2]
[358072128,1744689047241,-1648.49,0.00017897,2]
[358072129,1744689047252,-1648.49,0.00017897,2]
[358072130,1744689047262,-500.0,0.00017897,2]
[358072131,1744689047273,-1648.49,0.00017897,2]
[358072132,1744689047283,-500.0,0.00017897,2]
[358072133,1744689047292,-1648.49,0.00017897,2]
[358072134,1744689047302,-500.0,0.00017897,2]
[358072135,1744689047312,-1648.49,0.00017897,2]
[358072136,1744689047321,-350.58,0.00017897,2]
[358072137,1744689047331,-1648.49,0.00017897,2]
[358072138,1744689047340,-1648.69,0.00017897,2]
[358072139,1744689047349,-500.0,0.00017897,2]
[358072140,1744689047359,-500.0,0.00017897,2]
[358072141,1744689047368,-368.98,0.00017897,2]
[358072142,1744689047378,-150.0,0.00017897,2]
[358072143,1744689047387,-150.0,0.00017897,2]
[358072144,1744689047396,-150.0,0.00017897,2]
[358072145,1744689047405,-930.91,0.00017897,2]
[358072146,1744689047415,-930.91,0.00017897,2]
[358072147,1744689047423,-930.91,0.00017897,2]
[358072148,1744689047432,-162.02699016,0.00017897,2]
[358072149,1744689047443,-930.91,0.00017897,2]
[358072150,1744689047452,-930.91,0.00017897,2]
[358072151,1744689047462,-930.91,0.00017897,2]
[358072152,1744689047472,-930.91,0.00017897,2]
[358072153,1744689047481,-930.91,0.00017897,2]
[358072154,1744689047491,-930.91,0.00017897,2]
[358072155,1744689047501,-500.0,0.00017897,2]
[358072156,1744689047511,-930.91,0.00017897,2]
[358072157,1744689047520,-500.0,0.00017897,2]
[358072158,1744689047530,-930.91,0.00017897,2]
[358072159,1744689047540,-500.0,0.00017897,2]
[358072160,1744689047549,-930.91,0.00017897,2]
[358072161,1744689047559,-500.0,0.00017897,2]
[358072162,1744689047570,-450.0,0.00017897,2]
[358072163,1744689047581,-930.91,0.00017897,2]
[358072164,1744689047591,-500.0,0.00017897,2]
[358072165,1744689047603,-930.91,0.00017897,2]
[358072166,1744689047614,-616.6489828,0.00017897,2]
[358072167,1744689047624,-930.91,0.00017897,2]
[358072168,1744689047634,-930.91,0.00017897,2]
[358072169,1744689047643,-930.91,0.00017897,2]
[358072170,1744689047653,-930.91,0.00017897,2]
[358072171,1744689047663,-930.91,0.00017897,2]
[358072172,1744689047673,-930.91,0.00017897,2]
[358072173,1744689047683,-930.91,0.00017897,2]
[358072174,1744689047692,-930.94193875,0.00017897,2]
[358072175,1744689047702,-500.0,0.00017897,2]
[358072176,1744689047713,-500.0,0.00017897,2]
[358072177,1744689047723,-500.0,0.00017897,2]
[358072178,1744689047732,-500.0,0.00017897,2]
[358072179,1744689047742,-500.0,0.00017897,2]
[358072180,1744689047752,-517.31155989,0.00017897,2]
[358072181,1744689047762,-500.0,0.00017897,2]
[358072182,1744689047771,-500.0,0.00017897,2]
[358072183,1744689047782,-500.0,0.00017897,2]
[358072184,1744689047791,-500.0,0.00017897,2]
[358072185,1744689047801,-500.0,0.00017897,2]
[358072186,1744689047810,-500.0,0.00017897,2]
[358072187,1744689047820,-500.0,0.00017897,2]
[358072188,1744689047830,-500.0,0.00017897,2]
[358072189,1744689047839,-577.13758389,0.00017897,2]
[358072190,1744689047848,-500.0,0.00017897,2]
[358072191,1744689047858,-500.0,0.00017897,2]
[358072192,1744689047867,-500.0,0.00017897,2]
[358072193,1744689047878,-500.0,0.00017897,2]
[358072194,1744689047891,-500.0,0.00017897,2]
[358072195,1744689047901,-500.0,0.00017897,2]
[358072196,1744689047910,-500.0,0.00017897,2]
[358072197,1744689047919,-500.0,0.00017897,2]
[358072198,1744689047929,-500.0,0.00017897,2]
[358072199,1744689047939,-500.0,0.00017897,2]
[358072200,1744689047948,-221.27346255,0.00017897,2]
[358072201,1744689047958,-440.09511932,0.00017897,2]
[358072202,1744689047967,-500.0,0.00017897,2]
[358072203,1744689047978,-500.0,0.00017897,2]
[358072204,1744689047987,-500.0,0.00017897,2]
[358072205,1744689047999,-500.0,0.00017897,2]
[358072206,1744689048008,-500.0,0.00017897,2]
[358072207,1744689048019,-515.99,0.00017897,2]
[358072208,1744689048029,-422.32626517,0.00017897,2]
[358072209,1744689048039,-246.61741501,0.00017897,2]
[358072210,1744689048050,-500.0,0.00017897,2]
[358072211,1744689048060,-500.0,0.00017897,2]
[358072212,1744689048070,-500.0,0.00017897,2]
[358072213,1744689048080,-500.0,0.00017897,2]
[358072214,1744689048089,-500.0,0.00017897,2]
[358072215,1744689048099,-500.0,0.00017897,2]
[358072216,1744689048108,-500.0,0.00017897,2]
[358072217,1744689048118,-500.0,0.00017897,2]
[358072218,1744689048128,-500.0,0.00017897,2]
[358072219,1744689048138,-500.0,0.00017897,2]
[358072220,1744689048148,-500.0,0.00017897,2]
[358072221,1744689048159,-500.0,0.00017897,2]
[358072222,1744689048168,-272.18289944,0.00017897,2]
[358072223,1744689048178,-500.0,0.00017897,2]
[358072224,1744689048188,-500.0,0.00017897,2]
[358072225,1744689048198,-500.0,0.00017897,2]
[358072226,1744689048208,-153.50768323,0.00017897,2]
[358072227,1744689048218,-500.0,0.00017897,2]
[358072228,1744689048227,-509.05605198,0.00017897,2]
[358072229,1744689048236,-500.0,0.00017897,2]
[358072230,1744689048246,-500.0,0.00017897,2]
[358072231,1744689048256,-500.0,0.00017897,2]
[358072232,1744689048265,-504.62,0.00017897,2]
[358072233,1744689048277,-1416.174,0.00017898,2]
[358072234,1744689048287,-1328.0,0.00017898,2]
[358072235,1744689048296,-2047.0,0.00017898,2]
[358072236,1744689048305,-795.0,0.00017898,2]
[358072237,1744689048315,-1280.0,0.00017898,2]
[358072238,1744689048324,-545.0,0.00017898,2]
[358072239,1744689048333,-1438.0,0.00017898,2]
[358072240,1744689048343,-908.0,0.00017898,2]
[358072241,1744689048355,-575.0,0.00017898,2]
[358072242,1744689048364,-4149.0,0.00017898,2]
[358072243,1744689048375,-250.0,0.00017898,2]
[358072244,1744689048385,-3965.0,0.00017898,2]
[358072245,1744689048396,-152.0,0.00017898,2]
[358072246,1744689048405,-865.0,0.00017898,2]
[358072247,1744689048415,-1938.0,0.00017898,2]
[358072248,1744689048425,-135375.90179232,0.00017898,2]
[358072249,1744689048617,-840.25358815,0.00017898,2]
[358072250,1744689048779,-592.02856179,0.00017895,2]
[358072251,1744689048789,-500.0,0.00017896,2]
[358072252,1744689048799,-167728.75996643,0.00017898,2]
[358072253,1744689048808,-916.01916263,0.00017898,2]
[358072254,1744689048817,-1137025.75228334,0.00017898,2]
[358072255,1744689048835,-448.12608553,0.00017897,2]
[358072256,1744689048855,-51.87391447,0.00017897,2]
[358072257,1744689048864,-968.31311092,0.00017898,2]
[358072258,1744689048876,-331.305,0.00017898,2]
[358072259,1744689048890,-917.89264726,0.00017898,2]
[358072260,1744689048978,-500.0,0.00017896,2]
[358072261,1744689048988,-71.02940977,0.00017897,2]
[358072262,1744689050486,-492.98059023,0.00017897,2]
[358072263,1744689050495,-504.78,0.00017897,2]
[358072264,1744689050506,-150.0,0.00017898,2]
[358072265,1744689050515,-3881.25064085,0.00017898,2]
[358072266,1744689050527,-600.0,0.00017898,2]
[358072267,1744689050539,-323.35991841,0.00017898,2]
[358072268,1744689050760,-1706051.63008174,0.00017898,2]
[358072269,1744689050877,-7861.0,0.00017898,2]
[358072270,1744689053694,-63876.70211658,0.00017898,2]
[358072271,1744689121603,350.0,0.00019538,12]
[358072272,1744689121670,350.0,0.00017812,12]
[358072273,1744689121755,350.0,0.00017855,12]
[358072274,1744689129635,229.81104633,0.00017009,2]
[358072275,1744689129663,28.31895367,0.00017009,2]
[358072276,1744689275660,2512.48,0.00016959,2]
[358072279,1744689444314,215.12,0.00016959,2]
[358072280,1744689545815,227.32787376,0.000265,120]
[358072281,1744689639229,1000.0,0.00016948,2]
[358072282,1744689684983,526.24,0.00015023,2]
[358072283,1744689685404,526.24,0.00017287,2]
[358072284,1744690124901,372.91,0.00016933,2]
[358072285,1744690183511,-325.45265272,0.00017662,2]
[358072287,1744690202854,2000.0,0.0002,4]
[358072299,1744690232212,-1230.37145169,0.00017662,2]
[358072300,1744690232225,-5040.45749559,0.00017662,2]
[358072301,1744690232234,-268.78732178,0.00017749,2]
[358072302,1744690232243,-326.5818028,0.00017761,2]
[358072303,1744690232254,-239.29564494,0.00017762,2]
[358072391,1744690238166,-10.70435506,0.00017762,2]
[358072392,1744690238176,-300.0,0.00017802,2]
[358072393,1744690238184,-791.0,0.00017803,2]
[358072394,1744690238193,-52.90764494,0.00017803,2]
[358072395,1744690238378,-492.09235506,0.00017803,2]
[358072396,1744690238388,-908.0,0.00017803,2]
[358072397,1744690238398,-1280.0,0.00017803,2]
[358072398,1744690238407,-300.0,0.00017835,2]
[358072399,1744690238416,-1438.0,0.00017837,2]
[358072400,1744690238426,-4149.0,0.00017837,2]
[358072401,1744690238435,-575.0,0.00017837,2]
[358072402,1744690238444,-500.0,0.00017862,2]
[358072403,1744690238454,-500.0,0.00017862,2]
[358072404,1744690238463,-500.0,0.00017862,2]
[358072405,1744690238472,-500.0,0.00017862,2]
[358072406,1744690238482,-524.20254176,0.00017862,2]
[358072407,1744690238492,-516.31536748,0.00017862,2]
[358072408,1744690238502,-500.0,0.00017862,2]
[358072409,1744690238511,-500.0,0.00017862,2]
[358072410,1744690238520,-500.0,0.00017862,2]
[358072411,1744690238530,-421.0,0.00017862,2]
[358072412,1744690238539,-500.0,0.00017862,2]
[358072413,1744690238549,-500.0,0.00017873,2]
[358072414,1744690238559,-865.0,0.00017874,2]
[358072415,1744690238579,-3965.0,0.00017874,2]
[358072416,1744690238591,-152.0,0.00017874,2]
[358072417,1744690238600,-1123.0,0.00017874,2]
[358072418,1744690238609,-324.56550431,0.00017884,2]
[358072419,1744690238618,-2718.7924162,0.00017884,2]
[358072420,1744690238628,-1076.9727752,0.00017884,2]
[358072421,1744690238637,-17870.7309297,0.00017884,2]
[358072422,1744690238646,-249.26,0.00017886,2]
[358072423,1744690238656,-162.380719,0.00017887,2]
[358072424,1744690238667,-182.30354469,0.00017894,2]
[358072425,1744690238681,-768.078,0.00017894,2]
[358072426,1744690238690,-624.152285,0.00017894,2]
[358072427,1744690238699,-624.152285,0.00017894,2]
[358072428,1744690238709,-160.219155,0.00017894,2]
[358072429,1744690238719,-624.152284,0.00017894,2]
[358072430,1744690238728,-624.152284,0.00017894,2]
[358072431,1744690238737,-1303.873133,0.00017894,2]
[358072433,1744690238747,-1303.873133,0.00017894,2]
[358072434,1744690238756,-168.882586,0.00017894,2]
[358072435,1744690238766,-3040.0,0.00017894,2]
[358072436,1744690238777,-1314.0,0.00017894,2]
[358072437,1744690238787,-500.0,0.00017894,2]
[358072438,1744690238797,-500.0,0.00017894,2]
[358072439,1744690238807,-150.0,0.00017894,2]
[358072440,1744690238816,-150.0,0.00017894,2]
[358072441,1744690238826,-1139.197215,0.00017894,2]
[358072442,1744690238835,-1139.197215,0.00017894,2]
[358072443,1744690238845,-507.62835708,0.00017895,2]
[358072444,1744690238854,-500.0,0.00017895,2]
[358072445,1744690238872,-500.0,0.00017895,2]
[358072446,1744690238888,-176.29737963,0.00017895,2]
[358072447,1744690238903,-500.0,0.00017895,2]
[358072448,1744690238915,-500.0,0.00017895,2]
[358072449,1744690238929,-542.08162294,0.00017895,2]
[358072450,1744690238940,-500.0,0.00017895,2]
[358072452,1744690238951,-500.0,0.00017895,2]
[358072453,1744690238962,-508.63438164,0.00017895,2]
[358072456,1744690238976,-500.0,0.00017895,2]
[358072458,1744690238988,-500.0,0.00017895,2]
[358072460,1744690239000,-500.0,0.00017895,2]
[358072463,1744690239012,-519.76443301,0.00017895,2]
[358072465,1744690239025,-504.30172002,0.00017895,2]
[358072467,1744690239036,-518.5418252,0.00017895,2]
[358072469,1744690239048,-500.0,0.00017895,2]
[358072471,1744690239060,-505.43402451,0.00017895,2]
[358072474,1744690239073,-513.03891957,0.00017895,2]
[358072476,1744690239085,-500.91895059,0.00017895,2]
[358072478,1744690239097,-347.79676088,0.00017895,2]
[358072480,1744690239108,-504.97311187,0.00017895,2]
[358072483,1744690239120,-503.51938589,0.00017895,2]
[358072485,1744690239130,-519.4144248,0.00017895,2]
[358072486,1744690239140,-580.52621241,0.00017895,2]
[358072487,1744690239152,-364.83036486,0.00017895,2]
[358072488,1744690239162,-507.41659481,0.00017895,2]
[358072489,1744690239173,-500.50996824,0.00017895,2]
[358072490,1744690239185,-509.45987108,0.00017895,2]
[358072491,1744690239196,-298.36765751,0.00017895,2]
[358072492,1744690239208,-500.0,0.00017895,2]
[358072493,1744690239225,-500.0,0.00017895,2]
[358072494,1744690239237,-500.0,0.00017895,2]
[358072495,1744690239248,-500.0,0.00017895,2]
[358072496,1744690239263,-440.98005512,0.00017895,2]
[358072497,1744690239276,-500.0,0.00017895,2]
[358072498,1744690239288,-500.0,0.00017895,2]
[358072499,1744690239299,-500.0,0.00017895,2]
[358072500,1744690239313,-500.0,0.00017895,2]
[358072501,1744690239324,-500.0,0.00017895,2]
[358072502,1744690239336,-500.0,0.00017895,2]
[358072503,1744690239348,-528.00362924,0.00017895,2]
[358072504,1744690239359,-500.0,0.00017895,2]
[358072505,1744690239371,-500.0,0.00017895,2]
[358072506,1744690239383,-500.0,0.00017895,2]
[358072507,1744690239394,-500.0,0.00017895,2]
[358072508,1744690239405,-500.0,0.00017895,2]
[358072509,1744690239417,-500.0,0.00017895,2]
[358072510,1744690239429,-500.0,0.00017895,2]
[358072511,1744690239443,-500.0,0.00017895,2]
[358072512,1744690239455,-500.0,0.00017895,2]
[358072513,1744690239466,-500.0,0.00017895,2]
[358072514,1744690239477,-500.0,0.00017895,2]
[358072515,1744690239488,-297.17772037,0.00017895,2]
[358072516,1744690239500,-500.0,0.00017895,2]
[358072517,1744690239511,-543.32015845,0.00017895,2]
[358072518,1744690239520,-500.0,0.00017895,2]
[358072519,1744690239531,-500.0,0.00017895,2]
[358072520,1744690239542,-500.0,0.00017895,2]
[358072521,1744690239552,-500.0,0.00017895,2]
[358072522,1744690239564,-500.0,0.00017895,2]
[358072523,1744690239576,-500.0,0.00017895,2]
[358072524,1744690239589,-500.0,0.00017895,2]
[358072525,1744690239600,-500.0,0.00017895,2]
[358072526,1744690239610,-500.0,0.00017895,2]
[358072527,1744690239620,-500.0,0.00017895,2]
[358072528,1744690239630,-500.0,0.00017895,2]
[358072529,1744690239640,-500.0,0.00017895,2]
[358072530,1744690239651,-500.0,0.00017895,2]
[358072531,1744690239662,-500.0,0.00017895,2]
[358072532,1744690239674,-500.0,0.00017895,2]
[358072533,1744690239686,-400.51392281,0.00017895,2]
[358072534,1744690239698,-500.0,0.00017895,2]
[358072535,1744690239709,-500.0,0.00017895,2]
[358072536,1744690239719,-500.0,0.00017895,2]
[358072537,1744690239729,-500.0,0.00017895,2]
[358072538,1744690239740,-500.0,0.00017895,2]
[358072539,1744690239750,-500.0,0.00017895,2]
[358072540,1744690239760,-500.0,0.00017895,2]
[358072541,1744690239771,-500.0,0.00017895,2]
[358072542,1744690239782,-500.0,0.00017895,2]
[358072543,1744690239792,-500.0,0.00017895,2]
[358072544,1744690239804,-500.0,0.00017895,2]
[358072545,1744690239817,-197.3651915,0.00017895,2]
[358072546,1744690239830,-553.07844838,0.00017895,2]
[358072547,1744690239842,-500.0,0.00017895,2]
[358072548,1744690239856,-500.0,0.00017895,2]
[358072549,1744690239867,-507.13287609,0.00017895,2]
[358072551,1744690239879,-514.42412124,0.00017895,2]
[358072552,1744690239890,-500.0,0.00017895,2]
[358072553,1744690239902,-500.0,0.00017895,2]
[358072554,1744690239913,-500.0,0.00017895,2]
[358072555,1744690239924,-500.0,0.00017895,2]
[358072556,1744690239936,-500.0,0.00017895,2]
[358072558,1744690239947,-505.3451314,0.00017895,2]
[358072559,1744690239958,-500.0,0.00017895,2]
[358072561,1744690239969,-500.0,0.00017895,2]
[358072562,1744690239981,-500.0,0.00017895,2]
[358072563,1744690239992,-535.42283788,0.00017895,2]
[358072564,1744690240003,-500.0,0.00017895,2]
[358072565,1744690240015,-500.0,0.00017895,2]
[358072566,1744690240027,-500.0,0.00017895,2]
[358072567,1744690240038,-518.57069854,0.00017895,2]
[358072568,1744690240053,-507.64424235,0.00017895,2]
[358072569,1744690240066,-500.0,0.00017895,2]
[358072570,1744690240079,-500.0,0.00017895,2]
[358072571,1744690240091,-500.0,0.00017895,2]
[358072572,1744690240104,-500.0,0.00017895,2]
[358072573,1744690240116,-500.0,0.00017895,2]
[358072574,1744690240129,-500.0,0.00017895,2]
[358072575,1744690240141,-500.0,0.00017895,2]
[358072576,1744690240153,-557.10593138,0.00017895,2]
[358072577,1744690240165,-500.0,0.00017895,2]
[358072578,1744690240177,-545.42474336,0.00017895,2]
[358072579,1744690240190,-500.0,0.00017895,2]
[358072580,1744690240201,-500.0,0.00017895,2]
[358072581,1744690240214,-500.0,0.00017895,2]
[358072582,1744690240227,-500.0,0.00017895,2]
[358072583,1744690240239,-531.31353633,0.00017895,2]
[358072584,1744690240250,-500.0,0.00017895,2]
[358072585,1744690240262,-500.0,0.00017895,2]
[358072586,1744690240274,-513.07080944,0.00017895,2]
[358072587,1744690240285,-500.0,0.00017895,2]
[358072588,1744690240298,-507.01957378,0.00017895,2]
[358072589,1744690240309,-500.0,0.00017895,2]
[358072590,1744690240321,-526.77417563,0.00017895,2]
[358072591,1744690240332,-500.0,0.00017895,2]
[358072592,1744690240342,-496.33427459,0.00017895,2]
[358072593,1744690240353,-539.59161975,0.00017895,2]
[358072594,1744690240364,-500.0,0.00017895,2]
[358072595,1744690240376,-500.0,0.00017895,2]
[358072596,1744690240387,-500.0,0.00017895,2]
[358072597,1744690240398,-500.0,0.00017895,2]
[358072598,1744690240409,-500.0,0.00017895,2]
[358072599,1744690240421,-500.0,0.00017895,2]
[358072600,1744690240432,-500.0,0.00017895,2]
[358072601,1744690240443,-500.0,0.00017895,2]
[358072602,1744690240455,-500.0,0.00017895,2]
[358072603,1744690240466,-500.0,0.00017895,2]
[358072604,1744690240478,-500.0,0.00017895,2]
[358072605,1744690240490,-500.0,0.00017895,2]
[358072606,1744690240501,-516.42659789,0.00017895,2]
[358072607,1744690240511,-500.0,0.00017895,2]
[358072608,1744690240524,-519.50842793,0.00017895,2]
[358072609,1744690240536,-500.0,0.00017895,2]
[358072610,1744690240547,-529.16106802,0.00017895,2]
[358072611,1744690240559,-534.64694181,0.00017895,2]
[358072612,1744690240572,-500.0,0.00017895,2]
[358072613,1744690240583,-500.0,0.00017895,2]
[358072614,1744690240595,-508.48628231,0.00017895,2]
[358072615,1744690240606,-500.0,0.00017895,2]
[358072616,1744690240619,-500.0,0.00017895,2]
[358072617,1744690240630,-500.0,0.00017895,2]
[358072618,1744690240641,-2000.0,0.00017895,2]
[358072619,1744690240652,-500.0,0.00017895,2]
[358072620,1744690240663,-530.55315858,0.00017895,2]
[358072621,1744690240674,-500.0,0.00017895,2]
[358072622,1744690240685,-500.0,0.00017895,2]
[358072623,1744690240695,-500.0,0.00017895,2]
[358072624,1744690240707,-512.79742618,0.00017895,2]
[358072625,1744690240718,-517.29040362,0.00017895,2]
[358072626,1744690240729,-525.62202961,0.00017895,2]
[358072627,1744690240740,-539.27902671,0.00017895,2]
[358072628,1744690240751,-500.0,0.00017895,2]
[358072629,1744690240762,-500.0,0.00017895,2]
[358072630,1744690240775,-500.0,0.00017895,2]
[358072631,1744690240786,-500.0,0.00017895,2]
[358072632,1744690240797,-500.0,0.00017895,2]
[358072633,1744690240808,-500.0,0.00017895,2]
[358072634,1744690240819,-500.0,0.00017895,2]
[358072635,1744690240829,-500.0,0.00017895,2]
[358072636,1744690240840,-508.29445465,0.00017895,2]
[358072637,1744690240852,-500.0,0.00017895,2]
[358072638,1744690240863,-505.79520578,0.00017895,2]
[358072639,1744690240873,-500.0,0.00017895,2]
[358072640,1744690240884,-500.0,0.00017895,2]
[358072641,1744690240895,-500.0,0.00017895,2]
[358072642,1744690240906,-500.0,0.00017895,2]
[358072643,1744690240917,-487.7544832,0.00017895,2]
[358072644,1744690240928,-500.0,0.00017895,2]
[358072645,1744690240939,-556.63235403,0.00017895,2]
[358072646,1744690240949,-500.0,0.00017895,2]
[358072647,1744690240960,-500.0,0.00017895,2]
[358072648,1744690240970,-573.86445694,0.00017895,2]
[358072649,1744690240981,-510.74699165,0.00017895,2]
[358072650,1744690240992,-500.0,0.00017895,2]
[358072651,1744690241003,-500.0,0.00017895,2]
[358072652,1744690241014,-500.0,0.00017895,2]
[358072653,1744690241026,-451.91904965,0.00017895,2]
[358072654,1744690241038,-500.0,0.00017895,2]
[358072655,1744690241050,-500.0,0.00017895,2]
[358072656,1744690241061,-524.86887409,0.00017895,2]
[358072657,1744690241073,-500.0,0.00017895,2]
[358072658,1744690241083,-500.0,0.00017895,2]
[358072659,1744690241094,-500.0,0.00017895,2]
[358072660,1744690241106,-507.51483558,0.00017895,2]
[358072661,1744690241117,-500.0,0.00017895,2]
[358072662,1744690241127,-156.984525,0.00017895,2]
[358072663,1744690241139,-500.0,0.00017895,2]
[358072664,1744690241151,-500.0,0.00017895,2]
[358072665,1744690241162,-500.0,0.00017895,2]
[358072666,1744690241173,-503.77945157,0.00017895,2]
[358072667,1744690241184,-500.0,0.00017895,2]
[358072668,1744690241196,-500.0,0.00017895,2]
[358072669,1744690241207,-500.0,0.00017895,2]
[358072670,1744690241495,-500.0,0.00017895,2]
[358072671,1744690241507,-500.0,0.00017895,2]
[358072672,1744690241516,-500.0,0.00017895,2]
[358072673,1744690241527,-500.0,0.00017895,2]
[358072674,1744690241537,-500.0,0.00017895,2]
[358072675,1744690241547,-500.0,0.00017895,2]
[358072676,1744690241557,-500.0,0.00017895,2]
[358072677,1744690241567,-500.0,0.00017895,2]
[358072678,1744690241577,-500.0,0.00017895,2]
[358072679,1744690241586,-500.0,0.00017895,2]
[358072680,1744690241595,-500.71793,0.00017895,2]
[358072681,1744690241605,-637.40957839,0.00017895,2]
[358072682,1744690241615,-500.0,0.00017895,2]
[358072683,1744690241625,-500.0,0.00017895,2]
[358072684,1744690241635,-500.0,0.00017895,2]
[358072685,1744690241644,-500.0,0.00017895,2]
[358072686,1744690241655,-500.0,0.00017895,2]
[358072687,1744690241664,-500.0,0.00017895,2]
[358072688,1744690241674,-500.0,0.00017895,2]
[358072689,1744690241684,-500.0,0.00017895,2]
[358072690,1744690241694,-500.0,0.00017895,2]
[358072691,1744690241703,-500.0,0.00017895,2]
[358072692,1744690241713,-500.0,0.00017895,2]
[358072693,1744690241723,-500.0,0.00017895,2]
[358072694,1744690241732,-500.0,0.00017895,2]
[358072695,1744690241742,-500.0,0.00017895,2]
[358072696,1744690241752,-500.0,0.00017895,2]
[358072697,1744690241761,-503.23018259,0.00017895,2]
[358072698,1744690241771,-500.0,0.00017895,2]
[358072699,1744690241780,-500.0,0.00017895,2]
[358072700,1744690241790,-390.14226514,0.00017895,2]
[358072701,1744690241800,-543.18417944,0.00017895,2]
[358072702,1744690241809,-511.41108569,0.00017895,2]
[358072703,1744690241820,-427.3609278,0.00017895,2]
[358072704,1744690241830,-523.96289775,0.00017895,2]
[358072705,1744690241840,-500.0,0.00017895,2]
[358072706,1744690241850,-500.0,0.00017895,2]
[358072707,1744690241859,-520.33991884,0.00017895,2]
[358072708,1744690241869,-586.22055697,0.00017895,2]
[358072709,1744690241878,-500.0,0.00017895,2]
[358072710,1744690241887,-500.0,0.00017895,2]
[358072711,1744690241896,-541.21212206,0.00017895,2]
[358072712,1744690241906,-500.0,0.00017895,2]
[358072713,1744690241915,-500.0,0.00017896,2]
[358072714,1744690241925,-516.3159874,0.00017896,2]
[358072715,1744690241934,-500.0,0.00017896,2]
[358072716,1744690241944,-500.0,0.00017896,2]
[358072717,1744690241954,-500.0,0.00017896,2]
[358072718,1744690241963,-585.60222946,0.00017896,2]
[358072719,1744690241973,-500.0,0.00017896,2]
[358072720,1744690241982,-500.0,0.00017896,2]
[358072721,1744690241992,-521.63976808,0.00017896,2]
[358072722,1744690242001,-500.0,0.00017896,2]
[358072723,1744690242011,-500.0,0.00017896,2]
[358072724,1744690242020,-500.0,0.00017896,2]
[358072725,1744690242030,-437.32,0.00017896,2]
[358072726,1744690242040,-500.0,0.00017896,2]
[358072727,1744690242049,-500.0,0.00017896,2]
[358072728,1744690242059,-500.0,0.00017896,2]
[358072729,1744690242069,-500.0,0.00017896,2]
[358072730,1744690242078,-500.0,0.00017896,2]
[358072731,1744690242087,-500.0,0.00017896,2]
[358072732,1744690242097,-553.52533242,0.00017896,2]
[358072733,1744690242107,-500.0,0.00017896,2]
[358072734,1744690242116,-500.0,0.00017896,2]
[358072735,1744690242126,-500.0,0.00017896,2]
[358072736,1744690242135,-500.0,0.00017896,2]
[358072737,1744690242144,-500.0,0.00017896,2]